[Event "11th Tamil Nadu Circuit-IM 2024"]
[Site "Chennai"]
[Date "2024.01.10"]
[Round "3.5"]
[White "Ziatdinov, Raset"]
[Black "Podolchenko, Evgeniy"]
[Result "0-1"]
[ECO "B18"]
[WhiteElo "2100"]
[BlackElo "2357"]
[Annotator "RC"]
[PlyCount "100"]
[EventDate "2024.01.09"]
[EventType "tourn"]
[EventCountry "IND"]
[SourceTitle "playchess.com"]
[Source "ChessBase"]
[SourceQuality "1"]
[TimeControl "5400+30"]

1. e4 {[%emt 0:00:12]} c6 {[%emt 0:00:05]} 2. d4 {[%emt 0:00:30]} d5 {[%emt 0:00:30]} 3. Nc3 {[%emt 0:00:00]} dxe4 {[%emt 0:00:00]} 4. Nxe4 {[%emt 0:00:09]} Bf5 {[%emt 0:00:10]} 5. Ng3 {[%emt 0:00:30]} Bg6 {[%emt 0:00:30]} 6. Nf3 {[%emt 0:00:30]} Nf6 {[%emt 0:00:30]} 7. h4 {[%emt 0:00:30]} Nh5 {[%emt 0:00:30]} 8. Ne2 {[%emt 0:00:30]} Nd7 {[%emt 0:00:30]} 9. g4 {[%emt 0:00:30]} Nhf6 {[%emt 0:00:30]} 10. g5 {[%emt 0:06:24]} Nh5 11. Bh3 Bf5 {[%emt 0:07:33]} 12. Nc3 {[%emt 0:15:06]} Bxh3 {[%emt 0:01:30]} 13. Rxh3 {[%emt 0:00:06]} g6 {[%emt 0:01:04]} 14. Qe2 {[%emt 0:01:28]} Bg7 {[%emt 0:07:46]} 15. Bd2 {[%emt 0:04:09]} O-O {[%emt 0:02:32]} 16. O-O-O {[%emt 0:00:12]} Qc7 {[%emt 0:05:55]} 17. Qe4 {[%emt 0:04:09]} Rfe8 18. d5 {[%emt 0:13:08]} Rac8 {[%emt 0:11:56]} 19. Rhh1 {[%emt 0:12:20]} Nc5 {[%emt 0:05:11]} 20. Qc4 {[%emt 0:00:52]} cxd5 {[%emt 0:00:29]} 21. Nxd5 {[%emt 0:01:54]} Qc6 {[%emt 0:00:34]} 22. b4 {[%emt 0:08:45]} Qa4 {[%emt 0:01:24]} 23. Nd4 {[%emt 0:16:49]} e6 {[%emt 0:06:40]} 24. Ne3 {[%emt 0:02:11]} Ne4 {[%emt 0:02:18]} 25. Qb3 {[%emt 0:00:10]} Qxb3 {[%emt 0:00:05]} 26. Nxb3 {[%emt 0:00:12]} Nxf2 {[%emt 0:00:03]} 27. c4 {[%emt 0:03:27]} Ng3 {[%emt 0:00:43]} 28. Rh2 {[%emt 0:00:39]} Nxd1 {[%emt 0:00:07]} 29. Kxd1 {[%emt 0:00:14]} Red8 {[%emt 0:00:15]} 30. c5 {[%emt 0:00:41]} b6 {[%emt 0:00:22]} 31. Nc4 {[%emt 0:02:13]} Ne4 {[%emt 0:00:39]} 32. Kc2 {[%emt 0:00:20]} bxc5 {[%emt 0:00:39]} 33. b5 {[%emt 0:00:09]} Nd6 {[%emt 0:01:22]} 34. Nxd6 {[%emt 0:00:59]} Rxd6 {[%emt 0:00:02]} 35. Na5 {[%emt 0:00:44]} a6 {[%emt 0:03:56]} 36. Nc6 {[%emt 0:01:39]} Bf8 37. a4 {[%emt 0:00:26]} axb5 {[%emt 0:00:34]} 38. axb5 {[%emt 0:00:02]} Rdxc6 {[%emt 0:00:23]} 39. bxc6 {[%emt 0:00:13]} Rxc6 {[%emt 0:00:02]} 40. Be3 {[%emt 0:01:11]} Bg7 {[%emt 0:00:22]} 41. Kd3 {[%emt 0:01:05]} Bd4 {[%emt 0:00:21]} 42. Bc1 {[%emt 0:00:11]} e5 {[%emt 0:00:09]} 43. Ra2 {[%emt 0:00:11]} Rc8 {[%emt 0:00:55]} 44. Ke4 {[%emt 0:00:19]} c4 {[%emt 0:00:57]} 45. Ra6 {[%emt 0:00:25]} c3 {[%emt 0:02:26]} 46. Rd6 Bf2 {[%emt 0:01:35]} 47. Rd7 {[%emt 0:00:39]} Bxh4 {[%emt 0:00:30]} 48. Kxe5 {[%emt 0:00:24]} c2 {[%emt 0:00:14]} 49. Kf4 {[%emt 0:01:56]} Rc4+ {[%emt 0:00:59]} 50. Ke5 {[%emt 0:00:29]} Bxg5 {[%emt 0:00:18]} 0-1

[Event "11th Tamil Nadu Circuit-IM 2024"]
[Site "Chennai"]
[Date "2024.01.11"]
[Round "4.1"]
[White "Wagh Suyog"]
[Black "Podolchenko, Evgeniy"]
[Result "1/2-1/2"]
[ECO "A62"]
[WhiteElo "2266"]
[BlackElo "2357"]
[Annotator "RC"]
[PlyCount "118"]
[EventDate "2024.01.09"]
[EventType "tourn"]
[EventCountry "IND"]
[SourceTitle "playchess.com"]
[Source "ChessBase"]
[SourceQuality "1"]
[TimeControl "5400+30"]

1. d4 {[%emt 0:00:02]} Nf6 {[%emt 0:02:27]} 2. c4 {[%emt 0:00:35]} e6 {[%emt 0:00:04]} 3. g3 {[%emt 0:00:02]} c5 {[%emt 0:00:09]} 4. d5 {[%emt 0:00:04]} exd5 {[%emt 0:00:05]} 5. cxd5 {[%emt 0:00:03]} d6 {[%emt 0:00:07]} 6. Nc3 {[%emt 0:00:05]} g6 {[%emt 0:00:18]} 7. Bg2 {[%emt 0:00:57]} Bg7 {[%emt 0:00:03]} 8. Nf3 {[%emt 0:00:08]} O-O {[%emt 0:00:05]} 9. O-O {[%emt 0:00:03]} Re8 {[%emt 0:00:05]} 10. Bf4 {[%emt 0:00:22]} a6 {[%emt 0:02:00]} 11. a4 {[%emt 0:00:04]} h6 {[%emt 0:00:26]} 12. Qc1 {[%emt 0:02:51]} g5 {[%emt 0:00:25]} 13. Be3 {[%emt 0:09:38]} Bf5 {[%emt 0:05:38]} 14. h4 {[%emt 0:00:08]} g4 {[%emt 0:00:08]} 15. Nd2 {[%emt 0:00:15]} Rxe3 {[%emt 0:10:25]} 16. fxe3 {[%emt 0:00:01]} Bg6 {[%emt 0:00:07]} 17. Nc4 {[%emt 0:02:52]} Nh5 {[%emt 0:05:29]} 18. Kh2 {[%emt 0:00:30]} Nd7 {[%emt 0:00:35]} 19. a5 {[%emt 0:17:53]} Qe7 {[%emt 0:02:22]} 20. e4 {[%emt 0:05:26]} Re8 {[%emt 0:08:36]} 21. Ra3 {[%emt 0:02:02]} Kh7 {[%emt 0:09:17]} 22. Rb3 {[%emt 0:02:36]} Ne5 {[%emt 0:00:37]} 23. Ne3 {[%emt 0:00:57]} Bf6 {[%emt 0:08:49]} 24. Nf5 {[%emt 0:09:53]} Bxf5 {[%emt 0:00:08]} 25. Rxf5 {[%emt 0:00:04]} Ng7 {[%emt 0:05:24]} 26. Rxf6 {[%emt 0:20:32]} Qxf6 {[%emt 0:00:12]} 27. Rxb7 {[%emt 0:00:01]} Re7 {[%emt 0:00:19]} 28. Rb6 {[%emt 0:03:33]} Nh5 {[%emt 0:03:19]} 29. Nd1 {[%emt 0:02:29]} Ng6 {[%emt 0:05:51]} 30. Qc3 {[%emt 0:02:54]} Re5 {[%emt 0:00:02]} 31. Kg1 {[%emt 0:02:16]} Nxh4 {[%emt 0:05:00]} 32. Nf2 {[%emt 0:00:50]} Nxg2 {[%emt 0:02:33]} 33. Kxg2 {[%emt 0:02:33]} Qe7 {[%emt 0:01:46]} 34. b4 {[%emt 0:04:58]} Nf6 {[%emt 0:03:07]} 35. bxc5 {[%emt 0:00:55]} Nxe4 {[%emt 0:00:17]} 36. cxd6 {[%emt 0:01:28]} Nxc3 {[%emt 0:06:20]} 37. dxe7 {[%emt 0:00:06]} Nxd5 {[%emt 0:00:06]} 38. Nxg4 {[%emt 0:02:48]} Rxe7 {[%emt 0:00:02]} 39. Rxh6+ {[%emt 0:01:18]} Kg7 {[%emt 0:00:01]} 40. Rd6 {[%emt 0:01:02]} Rxe2+ {[%emt 0:04:35]} 41. Kf3 {[%emt 0:01:13]} Nc3 {[%emt 0:00:02]} 42. Rxa6 {[%emt 0:02:46]} Ra2 {[%emt 0:01:48]} 43. Ne3 {[%emt 0:00:05]} Nb5 {[%emt 0:01:11]} 44. Nf5+ {[%emt 0:00:28]} Kh7 {[%emt 0:01:13]} 45. Ke4 {[%emt 0:02:21]} Re2+ {[%emt 0:06:26]} 46. Kf4 {[%emt 0:00:10]} Nc7 {[%emt 0:00:50]} 47. Ra7 {[%emt 0:01:09]} Ne6+ {[%emt 0:00:02]} 48. Kf3 {[%emt 0:00:32]} Ra2 {[%emt 0:00:02]} 49. Nd6 {[%emt 0:00:16]} Ng5+ {[%emt 0:00:44]} 50. Kf4 {[%emt 0:00:38]} Kg6 {[%emt 0:00:02]} 51. a6 {[%emt 0:00:36]} Ne6+ {[%emt 0:01:32]} 52. Kf3 {[%emt 0:00:21]} Ra3+ {[%emt 0:00:17]} 53. Kf2 {[%emt 0:00:19]} Nc5 {[%emt 0:00:14]} 54. Nxf7 {[%emt 0:00:28]} Rxa6 {[%emt 0:00:11]} 55. Nh8+ {[%emt 0:00:31]} Kf5 {[%emt 0:00:39]} 56. Rf7+ {[%emt 0:00:35]} Rf6 {[%emt 0:00:02]} 57. g4+ {[%emt 0:00:39]} Kxg4+ {[%emt 0:00:02]} 58. Rxf6 {[%emt 0:00:07]} Ne4+ {[%emt 0:00:03]} 59. Ke3 {[%emt 0:00:04]} Nxf6 {[%emt 0:00:03]} 1/2-1/2

[Event "11th Tamil Nadu Circuit-IM 2024"]
[Site "Chennai"]
[Date "2024.01.11"]
[Round "4.2"]
[White "Khusenkhojaev, Muhammad"]
[Black "Ziatdinov, Raset"]
[Result "1-0"]
[ECO "E06"]
[WhiteElo "2379"]
[BlackElo "2100"]
[Annotator "RC"]
[PlyCount "49"]
[EventDate "2024.01.09"]
[EventType "tourn"]
[EventCountry "IND"]
[SourceTitle "playchess.com"]
[Source "ChessBase"]
[SourceQuality "1"]
[TimeControl "5400+30"]

1. d4 {[%emt 0:03:25]} d5 {[%emt 0:02:35]} 2. c4 {[%emt 0:00:13]} e6 {[%emt 0:00:08]} 3. Nf3 {[%emt 0:00:06]} Nf6 {[%emt 0:00:05]} 4. g3 {[%emt 0:00:06]} Be7 {[%emt 0:00:19]} 5. Bg2 {[%emt 0:00:13]} O-O {[%emt 0:00:05]} 6. Nc3 {[%emt 0:00:07]} c6 {[%emt 0:00:48]} 7. O-O {[%emt 0:00:23]} b6 {[%emt 0:00:07]} 8. b3 {[%emt 0:00:33]} Bb7 {[%emt 0:00:19]} 9. Qc2 {[%emt 0:02:19]} Na6 {[%emt 0:01:00]} 10. Rd1 {[%emt 0:01:45]} Rc8 {[%emt 0:00:13]} 11. e4 {[%emt 0:00:25]} Ba8 {[%emt 0:10:33]} 12. e5 {[%emt 0:01:05]} Nd7 {[%emt 0:00:09]} 13. h4 {[%emt 0:02:54]} c5 {[%emt 0:03:27]} 14. Ng5 {[%emt 0:00:24]} g6 {[%emt 0:00:58]} 15. dxc5 {[%emt 0:12:39]} Rxc5 {[%emt 0:13:29]} 16. Be3 {[%emt 0:02:34]} Rc8 {[%emt 0:01:40]} 17. cxd5 {[%emt 0:00:52]} Bb4 {[%emt 0:03:51]} 18. dxe6 {[%emt 0:00:29]} Rxc3 {[%emt 0:00:37]} 19. Qe2 {[%emt 0:02:56]} Bxg2 {[%emt 0:00:20]} 20. Rxd7 {[%emt 0:00:09]} Qa8 {[%emt 0:11:28]} 21. exf7+ {[%emt 0:00:18]} Rxf7 {[%emt 0:01:08]} 22. Nxf7 {[%emt 0:01:04]} Bf8 {[%emt 0:02:34]} 23. Rd8 {[%emt 0:01:47]} Qb7 {[%emt 0:01:20]} 24. Bh6 {[%emt 0:01:27]} Kxf7 {[%emt 0:00:14]} 25. e6+ {[%emt 0:00:12]} 1-0

[Event "11th Tamil Nadu Circuit-IM 2024"]
[Site "Chennai"]
[Date "2024.01.11"]
[Round "4.3"]
[White "Priyanka, K."]
[Black "Lokesh, N.."]
[Result "1/2-1/2"]
[ECO "C70"]
[WhiteElo "2068"]
[BlackElo "2140"]
[Annotator "RC"]
[PlyCount "108"]
[EventDate "2024.01.09"]
[EventType "tourn"]
[EventCountry "IND"]
[SourceTitle "playchess.com"]
[Source "ChessBase"]
[SourceQuality "1"]
[TimeControl "5400+30"]

1. e4 {[%emt 0:00:21]} e5 {[%emt 0:00:07]} 2. Nf3 {[%emt 0:00:06]} Nc6 {[%emt 0:00:06]} 3. Bb5 {[%emt 0:01:39]} Nge7 {[%emt 0:00:08]} 4. c3 {[%emt 0:02:32]} a6 {[%emt 0:05:15]} 5. Ba4 {[%emt 0:02:28]} g6 {[%emt 0:00:32]} 6. d4 {[%emt 0:06:00]} exd4 {[%emt 0:01:15]} 7. cxd4 {[%emt 0:04:27]} b5 {[%emt 0:00:12]} 8. Bb3 {[%emt 0:01:34]} Bg7 {[%emt 0:00:11]} 9. Nc3 {[%emt 0:07:48]} O-O {[%emt 0:05:43]} 10. h4 {[%emt 0:13:54]} Na5 {[%emt 0:17:24]} 11. h5 {[%emt 0:09:15]} Nxb3 {[%emt 0:00:56]} 12. Qxb3 {[%emt 0:00:14]} d5 {[%emt 0:01:36]} 13. hxg6 {[%emt 0:02:29]} fxg6 {[%emt 0:12:55]} 14. Bg5 {[%emt 0:06:59]} Be6 {[%emt 0:07:32]} 15. O-O-O {[%emt 0:04:50]} Qd6 {[%emt 0:18:38]} 16. Bxe7 {[%emt 0:14:35]} Qxe7 {[%emt 0:00:31]} 17. exd5 {[%emt 0:00:07]} Bf7 {[%emt 0:00:53]} 18. Rde1 {[%emt 0:00:18]} Qd6 {[%emt 0:01:09]} 19. Ne5 {[%emt 0:02:52]} Rad8 {[%emt 0:03:33]} 20. Ne4 {[%emt 0:16:44]} Qxd5 {[%emt 0:01:12]} 21. Qxd5 {[%emt 0:00:28]} Bxd5 {[%emt 0:01:24]} 22. f3 {[%emt 0:00:14]} Bxa2 {[%emt 0:15:52]} 23. Nc6 {[%emt 0:00:06]} Rde8 {[%emt 0:00:08]} 24. Nc5 {[%emt 0:00:27]} Rxe1+ {[%emt 0:02:32]} 25. Rxe1 {[%emt 0:00:03]} Bf7 {[%emt 0:00:11]} 26. Re7 {[%emt 0:01:10]} Bh6+ {[%emt 0:02:12]} 27. Kc2 {[%emt 0:00:29]} Bd5 {[%emt 0:01:10]} 28. Rxc7 {[%emt 0:01:25]} Bg5 {[%emt 0:00:34]} 29. Ne7+ {[%emt 0:00:34]} Bxe7 {[%emt 0:00:10]} 30. Rxe7 {[%emt 0:00:04]} a5 {[%emt 0:00:27]} 31. Rd7 {[%emt 0:00:38]} Bc6 {[%emt 0:00:53]} 32. Rc7 {[%emt 0:00:31]} Bd5 {[%emt 0:00:06]} 33. Rd7 {[%emt 0:01:00]} Bf7 {[%emt 0:00:28]} 34. Ne4 {[%emt 0:00:21]} Be6 {[%emt 0:00:35]} 35. Ra7 {[%emt 0:00:30]} a4 {[%emt 0:00:29]} 36. Ng5 {[%emt 0:00:45]} Bf5+ {[%emt 0:00:30]} 37. Kc3 {[%emt 0:00:05]} Rc8+ {[%emt 0:00:38]} 38. Kb4 {[%emt 0:00:21]} Rc4+ {[%emt 0:00:24]} 39. Kxb5 {[%emt 0:00:17]} Rxd4 {[%emt 0:00:06]} 40. Nxh7 {[%emt 0:00:33]} Rd2 {[%emt 0:00:38]} 41. g4 {[%emt 0:01:11]} Rxb2+ {[%emt 0:00:25]} 42. Kc5 {[%emt 0:00:21]} Bc2 {[%emt 0:01:07]} 43. Nf6+ {[%emt 0:00:26]} Kf8 {[%emt 0:00:04]} 44. Nh7+ {[%emt 0:00:35]} Ke8 {[%emt 0:00:09]} 45. Nf6+ {[%emt 0:00:17]} Kf8 {[%emt 0:01:05]} 46. f4 {[%emt 0:00:49]} Bd1 {[%emt 0:00:48]} 47. Nh7+ {[%emt 0:00:23]} Ke8 {[%emt 0:00:11]} 48. Nf6+ {[%emt 0:00:12]} Kf8 {[%emt 0:00:02]} 49. Nh7+ {[%emt 0:01:00]} Ke8 {[%emt 0:00:02]} 50. Nf6+ {[%emt 0:00:10]} Kf8 {[%emt 0:00:08]} 51. Rd7 {[%emt 0:00:48]} Bb3 {[%emt 0:01:01]} 52. Nh7+ {[%emt 0:00:28]} Ke8 {[%emt 0:00:03]} 53. Nf6+ {[%emt 0:00:28]} Kf8 {[%emt 0:00:02]} 54. Nh7+ {[%emt 0:00:01]} Ke8 {[%emt 0:00:32]} 1/2-1/2

[Event "11th Tamil Nadu Circuit-IM 2024"]
[Site "Chennai"]
[Date "2024.01.11"]
[Round "4.4"]
[White "Harsh Suresh"]
[Black "Daakshin Arun"]
[Result "1-0"]
[ECO "A45"]
[WhiteElo "2361"]
[BlackElo "2309"]
[Annotator "RC"]
[PlyCount "93"]
[EventDate "2024.01.09"]
[EventType "tourn"]
[EventCountry "IND"]
[SourceTitle "playchess.com"]
[Source "ChessBase"]
[SourceQuality "1"]
[TimeControl "5400+30"]

1. d4 {[%emt 0:00:08]} Nf6 {[%emt 0:00:06]} 2. Bg5 {[%emt 0:00:16]} g6 {[%emt 0:01:09]} 3. Bxf6 {[%emt 0:00:39]} exf6 {[%emt 0:00:05]} 4. c4 {[%emt 0:00:04]} d5 {[%emt 0:01:02]} 5. cxd5 {[%emt 0:00:06]} Qxd5 {[%emt 0:00:04]} 6. Nc3 {[%emt 0:00:05]} Qd8 {[%emt 0:00:25]} 7. g3 {[%emt 0:00:08]} h5 {[%emt 0:01:14]} 8. h4 {[%emt 0:00:18]} Bg7 {[%emt 0:00:07]} 9. Bg2 {[%emt 0:00:05]} c6 {[%emt 0:02:27]} 10. e3 {[%emt 0:00:28]} O-O {[%emt 0:05:00]} 11. Nge2 {[%emt 0:00:38]} Bg4 {[%emt 0:02:20]} 12. Qd2 {[%emt 0:02:26]} Bxe2 {[%emt 0:07:27]} 13. Qxe2 {[%emt 0:01:23]} f5 {[%emt 0:01:27]} 14. Qd2 {[%emt 0:06:08]} Nd7 {[%emt 0:03:39]} 15. O-O {[%emt 0:05:08]} a5 {[%emt 0:03:50]} 16. Rfd1 {[%emt 0:07:08]} Nb6 {[%emt 0:07:27]} 17. Qc2 {[%emt 0:01:52]} Qe7 {[%emt 0:08:14]} 18. Ne2 {[%emt 0:04:49]} a4 {[%emt 0:08:34]} 19. Rac1 {[%emt 0:13:04]} Ra5 {[%emt 0:04:08]} 20. Nf4 {[%emt 0:01:55]} Rfa8 {[%emt 0:03:29]} 21. a3 {[%emt 0:19:11]} Qd6 {[%emt 0:08:16]} 22. Nd3 {[%emt 0:01:57]} Nd7 {[%emt 0:03:06]} 23. Qd2 {[%emt 0:00:35]} Bf8 {[%emt 0:01:48]} 24. Rc4 {[%emt 0:01:54]} Qe6 {[%emt 0:03:19]} 25. d5 {[%emt 0:06:52]} cxd5 {[%emt 0:00:29]} 26. Nf4 {[%emt 0:00:09]} Qd6 {[%emt 0:04:28]} 27. Rd4 {[%emt 0:03:35]} Nb6 {[%emt 0:03:28]} 28. Nxd5 {[%emt 0:01:44]} Bg7 {[%emt 0:01:38]} 29. Rb4 {[%emt 0:01:04]} Nxd5 {[%emt 0:01:07]} 30. Bxd5 {[%emt 0:00:27]} Qe5 {[%emt 0:03:35]} 31. Rxb7 {[%emt 0:03:04]} R5a7 {[%emt 0:00:06]} 32. Rxf7 {[%emt 0:00:49]} Rxf7 {[%emt 0:01:00]} 33. Bxa8 {[%emt 0:00:02]} Ra7 {[%emt 0:02:56]} 34. Qd8+ {[%emt 0:04:29]} Kh7 {[%emt 0:00:18]} 35. Bd5 {[%emt 0:00:06]} Kh6 {[%emt 0:06:20]} 36. Bc6 {[%emt 0:05:50]} Bf6 {[%emt 0:01:36]} 37. Qb6 {[%emt 0:00:59]} Qc7 {[%emt 0:01:10]} 38. Qc5 {[%emt 0:02:43]} Ra6 {[%emt 0:01:26]} 39. Rd6 {[%emt 0:03:52]} Qe7 {[%emt 0:00:12]} 40. Qb4 {[%emt 0:01:43]} Qe5 {[%emt 0:00:53]} 41. Rd5 {[%emt 0:00:28]} Qxb2 {[%emt 0:00:23]} 42. Qf4+ {[%emt 0:01:39]} Kh7 {[%emt 0:00:08]} 43. Rd7+ {[%emt 0:00:02]} Bg7 {[%emt 0:00:09]} 44. Qc7 {[%emt 0:00:30]} Kh6 {[%emt 0:01:08]} 45. Bd5 {[%emt 0:00:21]} Qe5 {[%emt 0:00:43]} 46. Qd8 {[%emt 0:00:47]} Rf6 {[%emt 0:00:36]} 47. Rxg7 {[%emt 0:00:17]} 1-0

[Event "11th Tamil Nadu Circuit-IM 2024"]
[Site "Chennai"]
[Date "2024.01.11"]
[Round "4.5"]
[White "Manik, Mikulas"]
[Black "Hemanth Raam"]
[Result "0-1"]
[ECO "C84"]
[WhiteElo "2342"]
[BlackElo "2161"]
[Annotator "RC"]
[PlyCount "72"]
[EventDate "2024.01.09"]
[EventType "tourn"]
[EventCountry "IND"]
[SourceTitle "playchess.com"]
[Source "ChessBase"]
[SourceQuality "1"]
[TimeControl "5400+30"]

1. e4 {[%emt 0:00:03]} e5 {[%emt 0:00:07]} 2. Nf3 {[%emt 0:00:05]} Nc6 {[%emt 0:00:05]} 3. Bb5 {[%emt 0:00:05]} a6 {[%emt 0:00:04]} 4. Ba4 {[%emt 0:00:04]} Nf6 {[%emt 0:00:06]} 5. O-O {[%emt 0:00:06]} Be7 {[%emt 0:01:25]} 6. d3 {[%emt 0:00:10]} b5 {[%emt 0:00:29]} 7. Bb3 {[%emt 0:00:03]} d6 {[%emt 0:00:09]} 8. a3 {[%emt 0:00:46]} Bg4 {[%emt 0:06:58]} 9. c3 {[%emt 0:00:10]} O-O {[%emt 0:05:19]} 10. h3 {[%emt 0:01:55]} Be6 {[%emt 0:01:41]} 11. Re1 {[%emt 0:01:29]} Bxb3 {[%emt 0:07:10]} 12. Qxb3 {[%emt 0:00:03]} Nd7 {[%emt 0:00:05]} 13. d4 {[%emt 0:07:43]} Bf6 {[%emt 0:01:14]} 14. d5 {[%emt 0:09:14]} Na5 {[%emt 0:01:12]} 15. Qd1 {[%emt 0:00:32]} Nb6 {[%emt 0:01:10]} 16. Nbd2 {[%emt 0:01:33]} c6 {[%emt 0:01:43]} 17. dxc6 {[%emt 0:00:19]} Qc7 {[%emt 0:01:24]} 18. Nf1 {[%emt 0:01:58]} Qxc6 {[%emt 0:04:14]} 19. Ng3 {[%emt 0:06:15]} Rfe8 {[%emt 0:17:48]} 20. Nf5 {[%emt 0:03:38]} Rad8 {[%emt 0:00:58]} 21. Qe2 {[%emt 0:15:59]} d5 {[%emt 0:02:44]} 22. Ng5 {[%emt 0:04:36]} g6 {[%emt 0:09:27]} 23. Nh6+ {[%emt 0:08:19]} Kg7 {[%emt 0:00:31]} 24. Ng4 {[%emt 0:01:36]} Nb3 {[%emt 0:01:39]} 25. exd5 {[%emt 0:01:24]} Nxd5 {[%emt 0:00:36]} 26. Nxf6 {[%emt 0:06:27]} Qxf6 {[%emt 0:00:46]} 27. Nf3 {[%emt 0:00:05]} Nf4 {[%emt 0:02:52]} 28. Bxf4 {[%emt 0:01:04]} exf4 {[%emt 0:00:03]} 29. Qc2 {[%emt 0:00:10]} Nxa1 {[%emt 0:00:52]} 30. Rxa1 {[%emt 0:00:02]} Qc6 {[%emt 0:01:36]} 31. a4 {[%emt 0:00:39]} Qe4 {[%emt 0:00:38]} 32. Qxe4 {[%emt 0:00:20]} Rxe4 {[%emt 0:00:03]} 33. axb5 {[%emt 0:00:10]} axb5 {[%emt 0:00:05]} 34. Ra7 {[%emt 0:00:52]} h6 {[%emt 0:01:23]} 35. Rb7 {[%emt 0:01:20]} Rd1+ {[%emt 0:01:54]} 36. Kh2 {[%emt 0:00:02]} Re2 {[%emt 0:00:08]} 0-1

[Event "11th Tamil Nadu Circuit-IM 2024"]
[Site "Chennai"]
[Date "2024.01.11"]
[Round "5.1"]
[White "Hemanth Raam"]
[Black "Wagh Suyog"]
[Result "1-0"]
[ECO "B51"]
[WhiteElo "2161"]
[BlackElo "2266"]
[Annotator "RC"]
[PlyCount "85"]
[EventDate "2024.01.09"]
[EventType "tourn"]
[EventCountry "IND"]
[SourceTitle "playchess.com"]
[Source "ChessBase"]
[SourceQuality "1"]
[TimeControl "5400+30"]

1. e4 {[%emt 0:00:03]} c5 {[%emt 0:02:12]} 2. Nf3 {[%emt 0:01:02]} d6 {[%emt 0:01:46]} 3. Bb5+ {[%emt 0:00:00]} Nd7 {[%emt 0:00:06]} 4. c4 {[%emt 0:00:00]} Ngf6 {[%emt 0:00:06]} 5. Nc3 {[%emt 0:00:08]} g6 {[%emt 0:00:06]} 6. O-O {[%emt 0:00:35]} Bg7 {[%emt 0:00:05]} 7. d3 {[%emt 0:00:15]} O-O {[%emt 0:00:06]} 8. Ba4 {[%emt 0:00:15]} Nb6 {[%emt 0:09:03]} 9. Bc2 {[%emt 0:00:42]} Bg4 {[%emt 0:02:08]} 10. h3 {[%emt 0:00:20]} Bxf3 {[%emt 0:00:36]} 11. Qxf3 {[%emt 0:00:08]} Nfd7 {[%emt 0:00:06]} 12. Bg5 {[%emt 0:04:59]} Ne5 {[%emt 0:03:07]} 13. Qe3 {[%emt 0:00:45]} Nc6 {[%emt 0:02:23]} 14. Rae1 {[%emt 0:02:14]} Qd7 {[%emt 0:03:46]} 15. Bh6 {[%emt 0:03:21]} e6 {[%emt 0:09:33]} 16. Bxg7 {[%emt 0:08:51]} Kxg7 {[%emt 0:00:26]} 17. f4 {[%emt 0:00:22]} f6 {[%emt 0:27:08]} 18. Bd1 {[%emt 0:07:36]} e5 {[%emt 0:04:00]} 19. h4 {[%emt 0:02:32]} exf4 {[%emt 0:10:25]} 20. Rxf4 {[%emt 0:01:52]} Rae8 {[%emt 0:00:27]} 21. Ref1 {[%emt 0:00:29]} Qe7 {[%emt 0:00:21]} 22. Qh3 {[%emt 0:07:55]} Kg8 {[%emt 0:01:54]} 23. R4f2 {[%emt 0:01:05]} a6 {[%emt 0:00:13]} 24. h5 {[%emt 0:00:39]} Nd4 {[%emt 0:03:07]} 25. Bg4 {[%emt 0:08:12]} Qe5 {[%emt 0:03:50]} 26. hxg6 {[%emt 0:01:47]} hxg6 {[%emt 0:00:01]} 27. Qh6 {[%emt 0:00:07]} Qg5 {[%emt 0:00:38]} 28. Qxg5 {[%emt 0:00:21]} fxg5 {[%emt 0:00:10]} 29. Rf6 {[%emt 0:00:11]} Kg7 {[%emt 0:09:25]} 30. Rxd6 {[%emt 0:00:44]} Nc6 {[%emt 0:00:24]} 31. Rxf8 {[%emt 0:10:24]} Rxf8 {[%emt 0:00:26]} 32. Nd5 {[%emt 0:10:17]} Nxd5 {[%emt 0:00:17]} 33. cxd5 {[%emt 0:00:02]} Nb4 {[%emt 0:03:01]} 34. Rb6 {[%emt 0:01:17]} Nxd3 {[%emt 0:00:14]} 35. Rxb7+ {[%emt 0:00:06]} Kf6 {[%emt 0:00:02]} 36. Be2 {[%emt 0:04:53]} Nc1 {[%emt 0:00:07]} 37. Rb6+ {[%emt 0:01:03]} Ke5 {[%emt 0:00:06]} 38. Re6+ {[%emt 0:00:08]} Kf4 {[%emt 0:03:38]} 39. Bxa6 {[%emt 0:00:17]} Kg3 {[%emt 0:00:18]} 40. Rxg6 {[%emt 0:00:32]} g4 {[%emt 0:00:04]} 41. d6 {[%emt 0:01:12]} Rf4 {[%emt 0:00:18]} 42. d7 {[%emt 0:01:05]} Rxe4 {[%emt 0:00:05]} 43. Rxg4+ {[%emt 0:00:18]} 1-0

[Event "11th Tamil Nadu Circuit-IM 2024"]
[Site "Chennai"]
[Date "2024.01.11"]
[Round "5.2"]
[White "Daakshin Arun"]
[Black "Manik, Mikulas"]
[Result "1/2-1/2"]
[ECO "D46"]
[WhiteElo "2309"]
[BlackElo "2342"]
[Annotator "RC"]
[PlyCount "60"]
[EventDate "2024.01.09"]
[EventType "tourn"]
[EventCountry "IND"]
[SourceTitle "playchess.com"]
[Source "ChessBase"]
[SourceQuality "1"]
[TimeControl "5400+30"]

1. d4 {[%emt 0:00:09]} Nf6 {[%emt 0:00:03]} 2. c4 {[%emt 0:00:24]} c6 {[%emt 0:00:02]} 3. Nc3 {[%emt 0:00:10]} d5 {[%emt 0:00:06]} 4. e3 {[%emt 0:00:23]} e6 {[%emt 0:00:10]} 5. Nf3 {[%emt 0:00:04]} Nbd7 {[%emt 0:00:07]} 6. Qc2 {[%emt 0:00:06]} Bd6 {[%emt 0:00:21]} 7. Bd3 {[%emt 0:00:13]} dxc4 {[%emt 0:00:11]} 8. Bxc4 {[%emt 0:00:05]} b5 {[%emt 0:00:07]} 9. Be2 {[%emt 0:00:36]} Bb7 {[%emt 0:00:19]} 10. O-O {[%emt 0:01:54]} O-O {[%emt 0:00:03]} 11. e4 {[%emt 0:00:04]} e5 {[%emt 0:00:09]} 12. dxe5 {[%emt 0:00:04]} Nxe5 {[%emt 0:00:11]} 13. Nd4 {[%emt 0:00:13]} Neg4 {[%emt 0:03:09]} 14. g3 {[%emt 0:01:59]} Re8 {[%emt 0:09:42]} 15. Nf5 {[%emt 0:01:50]} Bc5 {[%emt 0:01:28]} 16. Bf4 {[%emt 0:01:27]} Nxf2 {[%emt 0:03:38]} 17. Rxf2 {[%emt 0:00:13]} Bxf2+ {[%emt 0:00:08]} 18. Kxf2 {[%emt 0:00:04]} b4 {[%emt 0:01:24]} 19. e5 {[%emt 0:01:04]} bxc3 {[%emt 0:01:43]} 20. exf6 {[%emt 0:00:07]} Qxf6 {[%emt 0:00:44]} 21. g4 {[%emt 0:08:11]} g5 {[%emt 0:11:52]} 22. Be3 {[%emt 0:20:12]} Rxe3 {[%emt 0:07:22]} 23. Kxe3 {[%emt 0:00:12]} Re8+ {[%emt 0:00:44]} 24. Kf2 {[%emt 0:00:28]} Qe5 {[%emt 0:01:31]} 25. Ng3 {[%emt 0:15:28]} cxb2 {[%emt 0:00:45]} 26. Rb1 {[%emt 0:01:34]} Qe3+ {[%emt 0:04:25]} 27. Kf1 {[%emt 0:00:20]} Qf4+ {[%emt 0:00:41]} 28. Kg1 {[%emt 0:03:09]} Qe3+ {[%emt 0:00:08]} 29. Kf1 {[%emt 0:00:02]} Qf4+ {[%emt 0:00:06]} 30. Kg1 {[%emt 0:11:31]} Qe3+ {[%emt 0:01:47]} 1/2-1/2